Cogmind - Beta 12 @@@ ROGUE MODE // 2023.11.24 @ 15:04:14 Player: Mozco Result: Self-destructed Performance ------------- Evolutions (4) 2000 Regions Visited (14) 2800 Robots Destroyed (90) 450 Value Destroyed (2375) 2375 Prototype IDs (17) 340 Alien Tech Used (0) 0 Bonus (714) 714 TOTAL SCORE: 8679 Bonus ------- High Alert Combat Kills 6 Follower Combat Kills 108 Aligned with FarCom 300 Met Imprinter 300 Cogmind --------- Core Integrity 745/850 Matter 104/300 Energy 2/100 System Corruption 1% Temperature Warm (100) Movement Flying (122) Ox2 Location -6/Factory Parts ------- > --- POWER (2) -------- (None) > --- PROPULSION (4) --- Improved VTOL Module Cooled VTOL Module Advanced Surge Thruster Advanced Surge Thruster > --- UTILITY (7) ------ Small Storage Unit Improved Propulsion Shielding Reactive Plating Hacking Suite Makeshift Hacking Suite Improved Hacking Suite Makeshift System Restoration Module > --- WEAPON (2) ------- Plasma Rifle Remote Datajack > --- INVENTORY (8) ---- Light Ion Engine Light Antimatter Reactor Improved Cesium-ion Thruster Advanced Surge Thruster Makeshift ECM Suite Cloaking Device Peak State ------------ > --- POWER ------------ Heavy Deuterium Engine > --- PROPULSION ------- Improved VTOL Module Xenon Bombardment Thruster Improved Cesium-ion Thruster Cooled VTOL Module > --- UTILITY ---------- Small Storage Unit Modified TNC Experimental Targeting Computer Hacking Suite System Shield System Restoration Module > --- WEAPON ----------- Precision Grenade Launcher Impact Mace > --- INVENTORY -------- Cesium-ion Thruster Improved VTOL Module Advanced Surge Thruster Improved Propulsion Shielding Improved Propulsion Shielding Improved Light Armor Plating Hacking Suite Enhanced Autogun [Rating: 59] Favorites ----------- Power Light Nuclear Core Engine Ion Engine Power Core Light Nuclear Core Propulsion Airjet Wheel Compact Wheel Hover Unit Airjet Flight Unit Improved VTOL Module Utility Hacking Suite Device Advanced Weight Redist. System Storage Small Storage Unit Processor Modified TNC Hackware Hacking Suite Protection Improved Propulsion Shielding Weapon Mini Grenade Launcher Energy Gun Small Laser Ballistic Gun Enhanced Autogun Ballistic Cannon Gauss Cannon Launcher Mini Grenade Launcher Special Weapon Remote Datajack Impact Weapon Impact Mace Slashing Weapon Chainsword Build | -11 -10 -10 -10 -9 -8 -8 -7 -7 -7 -7 -7 -7 -6 -6 ------- Run | Jun Mat Min Exi Min Mat Sto Fac Was Fac Low Low Zio Pro Fac Slots Evolved 8 | . . . . . 4 . 2 . . . . . . 2 Power 1 | . . . . . . . . . . . . . . 1 Propulsion 2 | . . . . . 2 . . . . . . . . . Utility 5 | . . . . . 2 . 2 . . . . . . 1 Weapon . | . . . . . . . . . . . . . . . Parts Attached 129 | 6 18 . . . 21 17 21 . 15 . . 3 2 26 Power 13 | 1 2 . . . 1 2 1 . 3 . . . . 3 Engine 5 | 1 2 . . . . 1 . . 1 . . . . . Core 8 | . . . . . 1 1 1 . 2 . . . . 3 Reactor . | . . . . . . . . . . . . . . . Propulsion 32 | 2 3 . . . 11 4 8 . . . . 1 . 3 Treads . | . . . . . . . . . . . . . . . Leg . | . . . . . . . . . . . . . . . Wheel 2 | 2 . . . . . . . . . . . . . . Hover 11 | . . . . . 5 4 2 . . . . . . . Flight 19 | . 3 . . . 6 . 6 . . . . 1 . 3 Utility 41 | 1 4 . . . 3 1 7 . 8 . . 1 2 14 Device 11 | . 1 . . . . . 3 . 1 . . . . 6 Storage 5 | 1 1 . . . 1 . . . 1 . . . . 1 Processor 4 | . . . . . 1 . 1 . 1 . . . 1 . Hackware 6 | . 1 . . . 1 . 1 . 1 . . 1 . 1 Protection 15 | . 1 . . . . 1 2 . 4 . . . 1 6 Artifact . | . . . . . . . . . . . . . . . Weapon 43 | 2 9 . . . 6 10 5 . 4 . . 1 . 6 Energy Gun 9 | 1 3 . . . 2 1 . . . . . . . 2 Energy Cannon . | . . . . . . . . . . . . . . . Ballistic Gun 11 | 1 . . . . . 6 2 . . . . . . 2 Ballistic Cannon 1 | . . . . . . . . . . . . . . 1 Launcher 15 | . 6 . . . 2 2 3 . 2 . . . . . Special Weapon 1 | . . . . . . . . . . . . . . 1 Impact Weapon 4 | . . . . . 2 1 . . 1 . . . . . Slashing Weapon 2 | . . . . . . . . . 1 . . 1 . . Piercing Weapon . | . . . . . . . . . . . . . . . Special Melee Weapon . | . . . . . . . . . . . . . . . Unidentified Prototypes 13 | . . . . . 5 2 4 . 2 . . . . . Parts Lost 21 | . 2 . . . 7 2 1 . . . . . 5 4 Power 4 | . 1 . . . 1 . . . . . . . 1 1 Propulsion 8 | . 1 . . . 4 2 . . . . . . . 1 Utility 5 | . . . . . . . 1 . . . . . 2 2 Weapon 4 | . . . . . 2 . . . . . . . 2 . Highest Loss Streak 6 | . 1 . . . 6 2 1 . . . . . 4 2 To Critical Strikes . | . . . . . . . . . . . . . . . Average Slot Usage (%) 92 | . 85 85 85 85 94 98 99 100 98 100 100 100 76 81 Core 5 | . . . . . 7 8 6 7 7 7 7 7 1 7 Wheel 1 | . 11 . . . . . . . . . . . . . Hover 5 | . . . . . 2 34 11 . . . . . . . Flight 23 | . 16 28 28 28 30 . 18 30 30 30 30 30 30 26 Device 1 | . 2 . . . . . 2 . 1 . . . . 7 Storage 8 | . 14 14 14 14 9 9 7 7 5 7 7 7 7 5 Processor 8 | . . . . . 9 9 12 15 13 15 15 15 7 3 Hackware 16 | . 6 14 14 14 18 14 15 15 20 23 23 23 17 16 Protection 3 | . . . . . . 3 6 7 3 . . . 6 9 Energy Gun 1 | . 11 . . . 3 . . . . . . . . . Ballistic Gun 3 | . 5 . . . . 9 7 7 . . . . . 1 Launcher 8 | . 9 28 28 28 11 8 6 7 7 7 7 7 . . Slashing Weapon 1 | . . . . . . . . . 4 7 7 7 3 . Naked Turns . | . . . . . . . . . . . . . . . Heaviest Build 38 | 13 14 7 7 7 14 20 24 21 22 19 19 19 20 38 Greatest Support 32 | 32 32 8 8 8 24 32 32 22 22 22 22 22 23 27 Greatest Overweight (x) 3 | . 3 . . . 1 3 . . . . . . 2 2 Average Overweight (x) . | . . . . . . . . . . . . . . . Largest Inventory Capacity 8 | 8 8 8 8 8 8 8 8 8 8 8 8 8 8 8 Average Capacity 7 | 7 7 8 8 8 8 8 8 8 7 8 8 8 8 7 Most Carried 8 | 6 8 8 8 7 8 8 8 8 8 8 8 8 8 8 Average Carried 7 | 2 6 7 7 7 6 7 7 8 6 8 8 7 7 6 Final Capacity 8 | 8 8 8 8 8 8 8 8 8 8 8 8 8 8 8 Final Carried 8 | 6 8 8 7 7 8 8 8 8 8 8 8 8 8 6 Class Distribution -------------------- 51% | Hacker-Sprinter 25% | Hacker-Mutant 12% | Sprinter 10% | Mutant Dominant Class ---------------- Mutant | -10/Materials Sprinter | -10/Mines Sprinter | -10/Exiles Sprinter | -9/Mines Hacker-Sprinter | -8/Materials Hacker-Mutant | -8/Storage Hacker-Sprinter | -7/Factory Hacker-Sprinter | -7/Waste Hacker-Sprinter | -7/Factory Hacker-Sprinter | -7/Lower Caves Hacker-Sprinter | -7/Lower Caves Hacker-Sprinter | -7/Zion Hacker-Mutant | -6/Proximity Caves Hacker-Mutant | -6/Factory Resources | -11 -10 -10 -10 -9 -8 -8 -7 -7 -7 -7 -7 -7 -6 -6 ----------- Run | Jun Mat Min Exi Min Mat Sto Fac Was Fac Low Low Zio Pro Fac Matter Collected 2144 | 243 329 103 . . 270 318 326 . 147 8 56 101 48 195 Remotely . | . . . . . . . . . . . . . . . Salvage Created 2209 | . 539 89 . . 547 307 170 . 187 . 56 . 74 240 Parts 157 | . 40 2 . . 39 29 16 . 5 . 2 . 4 20 Haulers Intercepted 5 | . 2 . . . 1 2 . . . . . . . . Recyclers Shooed 5 | . 3 . . . 1 1 . . . . . . . . Parts Field Recycled . | . . . . . . . . . . . . . . . Retrieved Matter . | . . . . . . . . . . . . . . . Parts Self-Destructed 4 | . . . . . . . . . . . . . 4 . Prevented . | . . . . . . . . . . . . . . . Kills | -11 -10 -10 -10 -9 -8 -8 -7 -7 -7 -7 -7 -7 -6 -6 ------- Run | Jun Mat Min Exi Min Mat Sto Fac Was Fac Low Low Zio Pro Fac Combat Hostiles Destroyed 62 | . 9 4 . . 16 12 8 . 1 . . . 4 8 Melee 3 | . . . . . 1 . . . 1 . . . 1 . Guns 18 | . 2 . . . 3 5 3 . . . . . . 5 Cannons 3 | . . . . . . . . . . . . . . 3 AOE 38 | . 7 4 . . 12 7 5 . . . . . 3 . Classes Destroyed 12 | . 6 . . . 4 . 1 . . . 1 . . . Worker 10 | . 4 . . . 3 1 . . . . . . . 2 Builder 1 | . . . . . 1 . . . . . . . . . Hauler 5 | . 2 . . . 1 2 . . . . . . . . Recycler 3 | . 1 . . . . . . . 2 . . . . . Operator 3 | . 2 . . . 1 . . . . . . . . . Watcher 6 | . 2 . . . 2 . 1 . 1 . . . . . Swarmer 31 | . . . . . 8 8 6 . . . . . 3 6 Grunt 19 | . 9 4 . . 4 2 . . . . . . . . Sentry 4 | . . . . . 3 1 . . . . . . . . Hunter 2 | . . . . . 1 1 . . . . . . . . Programmer 6 | . . . . . . . 2 . 1 . . . 1 2 Samaritan 1 | . . . . . . . . . . . 1 . . . Best Kill Streak 12 | . 12 2 . . 6 4 3 . 2 . . . 3 4 Combat Bots Only 4 | . 4 2 . . 4 4 3 . 1 . . . 3 3 Max Kills in Single Turn 4 | . 4 1 . . 3 3 2 . 1 . 1 . 2 1 Gunslinging . | . . . . . . . . . . . . . . . Exploded 3 | . 2 1 . . 3 3 2 . . . . . 2 . Melee 1 | . . . . . 1 . . . 1 . . . 1 . Uniques/NPCs Destroyed . | . . . . . . . . . . . . . . . Combat | -11 -10 -10 -10 -9 -8 -8 -7 -7 -7 -7 -7 -7 -6 -6 -------- Run | Jun Mat Min Exi Min Mat Sto Fac Was Fac Low Low Zio Pro Fac Damage Taken 3237 | . 346 62 . . 925 367 282 . 111 22 . . 584 538 Core 863 | . 73 . . . 257 99 80 . 20 10 . . 219 105 Absorbed by Shields . | . . . . . . . . . . . . . . . Redirected to Shielding 203 | . . . . . . . 26 . . . . . 65 112 Regen/Repaired (Parts) 447 | . . . . . 53 38 95 . 40 . . . . 221 Core Remaining (%) 64 | 100 . . . 70 . 35 . . . . . . 53 . Volleys Fired 203 | . 45 5 . . 37 36 37 . . . . . 2 41 Largest 2 | . 2 2 . . 2 1 1 . . . . . 1 1 Hottest 75 | . 70 60 . . 60 30 36 . . . . . 36 75 Shots Fired 235 | . 68 10 . . 40 36 38 . . . . . 2 41 Gun 167 | . 55 . . . 25 32 33 . . . . . . 22 Cannon 18 | . . . . . . . . . . . . . . 18 Launcher 49 | . 13 10 . . 15 4 5 . . . . . 2 . Special 1 | . . . . . . . . . . . . . . 1 Kinetic 108 | . 15 . . . . 32 33 . . . . . . 28 Thermal 52 | . 40 . . . . . . . . . . . . 12 Explosive 49 | . 13 10 . . 15 4 5 . . . . . 2 . Electromagnetic 25 | . . . . . 25 . . . . . . . . . Robot Hit Streak 13 | . 13 . . . 13 9 7 . . . . . 3 7 Robot Miss Streak 6 | . 3 4 . . 6 2 3 . . . . . . 6 Penetration Max 1 | . . . . . . 1 . . . . . . . . Secondary Targets . | . . . . . . . . . . . . . . . Shots Hit Robots 158 | . 43 . . . 28 28 22 . 8 . 2 . 4 23 Core Hits 153 | . 36 9 . . 45 22 21 . 3 . 1 . 4 12 Critical Kills 1 | . 1 . . . . . . . . . . . . . Critical Parts Destroyed 1 | . . . . . . 1 . . . . . . . . Critical Strikes 4 | . 1 . . . . 1 . . . . . . . 2 Burn 1 | . . . . . . . . . . . . . . 1 Destroy 2 | . 1 . . . . 1 . . . . . . . . Blast 1 | . . . . . . . . . . . . . . 1 Melee Attacks 46 | . . . . . 8 1 . . 17 4 2 3 11 . Impact 9 | . . . . . 8 1 . . . . . . . . Slashing 37 | . . . . . . . . . 17 4 2 3 11 . Piercing . | . . . . . . . . . . . . . . . Sneak Attacks 5 | . . . . . . . . . 3 . 2 . . . Combat Hostiles . | . . . . . . . . . . . . . . . Follow-up Attacks . | . . . . . . . . . . . . . . . Damage Inflicted 7046 | . 1321 367 . . 2023 1066 741 . 458 . 135 . 405 530 Guns 2183 | . 408 . . . 444 570 418 . . . . . . 343 Cannons 187 | . . . . . . . . . . . . . . 187 Explosions 3857 | . 913 367 . . 1460 496 323 . . . . . 298 . Melee 819 | . . . . . 119 . . . 458 . 135 . 107 . Ramming . | . . . . . . . . . . . . . . . Kinetic 1412 | . 88 . . . . 570 418 . . . . . . 336 Thermal 719 | . 320 . . . 205 . . . . . . . . 194 Explosive 3652 | . 913 367 . . 1255 496 323 . . . . . 298 . Electromagnetic 444 | . . . . . 444 . . . . . . . . . Impact 119 | . . . . . 119 . . . . . . . . . Slashing 700 | . . . . . . . . . 458 . 135 . 107 . Piercing . | . . . . . . . . . . . . . . . Highest Corruption 9 | . . . . . . . 2 6 9 8 8 8 1 2 Average Corruption 4 | . . . . . . . 1 6 7 8 8 8 1 1 Corruption Purged 6 | . . . . . . . 3 . 2 . . . . 1 Corruption Blocked 1 | . . . . . . . . . 1 . . . . . Effects 35 | . . . . . . . 5 1 21 2 1 . 3 2 Message Errors 10 | . . . . . . . 1 . 3 2 1 . 1 2 Matter Fused 9 | . . . . . . . 1 . 7 . . . 1 . Heat Flow Errors 3 | . . . . . . . . . 2 . . . 1 . Energy Discharges 4 | . . . . . . . 1 . 3 . . . . . Parts Rejected 1 | . . . . . . . . . 1 . . . . . Parts Fused 1 | . . . . . . . . 1 . . . . . . Data Loss (minor) 4 | . . . . . . . 1 . 3 . . . . . Misfires 1 | . . . . . . . 1 . . . . . . . Alerts 2 | . . . . . . . . . 2 . . . . . Overload Shots . | . . . . . . . . . . . . . . . Overflow Damage 394 | . 19 . . . 88 7 . . 172 . 33 . 66 9 Projectiles 9 | . . . . . . . . . . . . . . 9 Explosions 163 | . 19 . . . 88 7 . . . . . . 49 . Melee 222 | . . . . . . . . . 172 . 33 . 17 . Knockbacks 1 | . . . . . . . . . . . . . . 1 Impact . | . . . . . . . . . . . . . . . Kinetic 1 | . . . . . . . . . . . . . . 1 Secondary . | . . . . . . . . . . . . . . . Self-Inflicted Damage 101 | . 33 . . . 68 . . . . . . . . . Shots 3 | . 1 . . . 2 . . . . . . . . . Rammed . | . . . . . . . . . . . . . . . Targets Rammed . | . . . . . . . . . . . . . . . Kicked . | . . . . . . . . . . . . . . . Crushed . | . . . . . . . . . . . . . . . Highest Temperature 256 | . 220 3 . . 34 16 15 . 239 6 . . 256 144 Average Temperature 44 | . 73 2 . . 11 4 5 . 122 6 . . 72 37 Received Heat Transfer 603 | . 168 36 . . 153 126 6 . 18 12 . . 78 6 Siege Activations . | . . . . . . . . . . . . . . . Robots Corrupted . | . . . . . . . . . . . . . . . Combat Hostiles . | . . . . . . . . . . . . . . . Parts Fried 3 | . . . . . 3 . . . . . . . . . Impact Corruptions . | . . . . . . . . . . . . . . . Robots Melted . | . . . . . . . . . . . . . . . Combat Hostiles . | . . . . . . . . . . . . . . . Parts Melted 6 | . 3 . . . . . . . . . . . . 3 Heat Transferred 1470 | . 820 . . . 150 . . . . . . . . 500 Parts Sabotaged . | . . . . . . . . . . . . . . . Parts Stolen . | . . . . . . . . . . . . . . . Parts Stripped . | . . . . . . . . . . . . . . . Power Chain Reactions 2 | . . . . . 2 . . . . . . . . . Missiles Intercepted . | . . . . . . . . . . . . . . . Alert | -11 -10 -10 -10 -9 -8 -8 -7 -7 -7 -7 -7 -7 -6 -6 ------- Run | Jun Mat Min Exi Min Mat Sto Fac Was Fac Low Low Zio Pro Fac Peak Influence 502 | . 336 235 . . 396 502 366 142 347 . . . . 193 Initial 167 | . . 36 . . . 167 144 122 99 . . . . 91 Average 157 | . 117 208 . . 136 257 189 135 191 . . . . 64 Maximum Alert Level 2 | . 1 1 . . 1 2 1 . 1 . . . . . Low Security (%) 65 | 100 63 36 . 100 71 33 46 100 81 . . . . 100 Level 1 34 | . 36 63 . . 28 64 53 . 18 . . . . . Level 2 . | . . . . . . 2 . . . . . . . . Level 3 . | . . . . . . . . . . . . . . . Level 4 . | . . . . . . . . . . . . . . . Level 5 . | . . . . . . . . . . . . . . . High Security . | . . . . . . . . . . . . . . . Max Security . | . . . . . . . . . . . . . . . Squads Dispatched 24 | . 2 1 . . 7 1 7 . 5 . . . . 1 Investigation 10 | . . 1 . . 3 1 1 . 4 . . . . . Extermination 4 | . . . . . . . 3 . . . . . . 1 Reinforcement 7 | . 2 . . . 1 . 3 . 1 . . . . . Assault . | . . . . . . . . . . . . . . . Garrison 3 | . . . . . 3 . . . . . . . . . Intercept . | . . . . . . . . . . . . . . . Searches Triggered . | . . . . . . . . . . . . . . . Construction Impeded . | . . . . . . . . . . . . . . . Haulers Reinforced . | . . . . . . . . . . . . . . . Active Scanning Responses . | . . . . . . . . . . . . . . . Cargo Convoy Interrupts . | . . . . . . . . . . . . . . . Stealth | -11 -10 -10 -10 -9 -8 -8 -7 -7 -7 -7 -7 -7 -6 -6 --------- Run | Jun Mat Min Exi Min Mat Sto Fac Was Fac Low Low Zio Pro Fac Distress Signals 5 | . 1 . . . 3 . . . . . . . . 1 Communications Jammed . | . . . . . . . . . . . . . . . Distress Signals . | . . . . . . . . . . . . . . . Times Spotted 143 | . 18 4 . . 35 17 23 6 14 1 . . 11 14 Peak Tracking Total 11 | . 5 2 . . 11 8 4 6 6 1 . . 9 6 Tactical Retreats 14 | . . . . . 1 1 3 . 3 . . . 4 2 Traps | -11 -10 -10 -10 -9 -8 -8 -7 -7 -7 -7 -7 -7 -6 -6 ------- Run | Jun Mat Min Exi Min Mat Sto Fac Was Fac Low Low Zio Pro Fac Traps Triggered 10 | . 1 . . . 1 . 4 . 3 . . . . 1 Indirectly . | . . . . . . . . . . . . . . . Trap Hack Attempts . | . . . . . . . . . . . . . . . Triggered . | . . . . . . . . . . . . . . . Disarmed . | . . . . . . . . . . . . . . . Reprogrammed 6 | . . . . . . . 6 . . . . . . . Reused . | . . . . . . . . . . . . . . . Traps Extracted . | . . . . . . . . . . . . . . . Installed . | . . . . . . . . . . . . . . . Triggered . | . . . . . . . . . . . . . . . Machines | -11 -10 -10 -10 -9 -8 -8 -7 -7 -7 -7 -7 -7 -6 -6 ---------- Run | Jun Mat Min Exi Min Mat Sto Fac Was Fac Low Low Zio Pro Fac Machines Disabled 8 | . . . . . 4 4 . . . . . . . . Max in Single Turn 2 | . . . . . 2 1 . . . . . . . . Garrison Access 6 | . . . . . . . 3 . 3 . . . . . Machines Repaired 1 | . . . . . 1 . . . . . . . . . Machines Sabotaged . | . . . . . . . . . . . . . . . Overloaded Fab Kills . | . . . . . . . . . . . . . . . Hacking | -11 -10 -10 -10 -9 -8 -8 -7 -7 -7 -7 -7 -7 -6 -6 --------- Run | Jun Mat Min Exi Min Mat Sto Fac Was Fac Low Low Zio Pro Fac Machines Accessed 71 | . 7 1 . . 8 6 23 . 18 . . 1 . 7 Terminals 41 | . 7 . . . 6 5 13 . 9 . . . . 1 Fabricators 4 | . . . . . . . 1 . 2 . . . . 1 Repair Stations 9 | . . . . . 1 1 3 . 2 . . . . 2 Recycling Units 4 | . . . . . . . 1 . 1 . . . . 2 Scanalyzers 5 | . . . . . 1 . 2 . 1 . . . . 1 Garrison Access 6 | . . . . . . . 3 . 3 . . . . . Total Hacks 246 | . 25 1 . . 29 16 87 . 67 . . 4 . 17 Successful 158 | . 13 1 . . 22 9 58 . 38 . . 4 . 13 Failed 84 | . 11 . . . 6 7 28 . 28 . . . . 4 Catastrophic 7 | . . . . . . . 5 . 2 . . . . . Database Lockouts 4 | . 1 . . . 1 . 1 . 1 . . . . . Manual 98 | . 14 . 1 . 20 3 31 . 26 . . . . 3 Terminals 157 | . 25 . . . 23 13 51 . 43 . . . . 2 Fabricators 8 | . . . . . . . 1 . 5 . . . . 2 Repair Stations 24 | . . . . . 4 3 7 . 6 . . . . 4 Recycling Units 15 | . . . . . . . 6 . 3 . . . . 6 Scanalyzers 25 | . . . . . 2 . 17 . 3 . . . . 3 Garrison Access 12 | . . . . . . . 5 . 7 . . . . . Terminal Hacks 59 | . 9 1 . . 10 6 15 . 14 . . 4 . . Part Schematic 6 | . . . . . . . . . 2 . . 4 . . Robot Analysis 8 | . 2 . . . 2 . 2 . 2 . . . . . Prototype ID Bank 2 | . 1 . . . . . . . 1 . . . . . Open Door 4 | . . 1 . . . 3 . . . . . . . . Branch Access Points 2 | . . . . . 1 . . . 1 . . . . . Emergency Access Points 2 | . . . . . . 1 1 . . . . . . . Garrison Index 2 | . . . . . . . 1 . 1 . . . . . Alert Level 10 | . 2 . . . 2 1 4 . 1 . . . . . Unreport Threat 4 | . 1 . . . 1 1 1 . . . . . . . Locate Traps 4 | . 1 . . . 1 . 2 . . . . . . . Reprogram Traps 1 | . . . . . . . 1 . . . . . . . Patrol Status 1 | . . . . . . . . . 1 . . . . . Extermination Status 1 | . . . . . . . . . 1 . . . . . Recall Investigation 2 | . 1 . . . . . . . 1 . . . . . Zone Layout 10 | . 1 . . . 3 . 3 . 3 . . . . . Fabricator Hacks 5 | . . . . . . . 1 . 4 . . . . . Network Status 1 | . . . . . . . 1 . . . . . . . Load Schematic 2 | . . . . . . . . . 2 . . . . . Build 2 | . . . . . . . . . 2 . . . . . Repair Station Hacks 19 | . . . . . 4 3 6 . 2 . . . . 4 Scan Component 10 | . . . . . 2 2 3 . 1 . . . . 2 Repair 9 | . . . . . 2 1 3 . 1 . . . . 2 Recycling Unit Hacks 11 | . . . . . . . 4 . 3 . . . . 4 Recycle Component 1 | . . . . . . . 1 . . . . . . . Process 4 | . . . . . . . 2 . 1 . . . . 1 Report Inventory 3 | . . . . . . . . . 1 . . . . 2 Retrieve Matter 3 | . . . . . . . 1 . 1 . . . . 1 Scanalyzer 22 | . . . . . 2 . 15 . 2 . . . . 3 Insert Component 12 | . . . . . 1 . 8 . 1 . . . . 2 Analyze 10 | . . . . . 1 . 7 . 1 . . . . 1 Garrison Access Hacks 7 | . . . . . . . 3 . 4 . . . . . Unlock Access 1 | . . . . . . . . . 1 . . . . . Seal Access 6 | . . . . . . . 3 . 3 . . . . . Unauthorized Hacks 35 | . 4 . . . 6 . 14 . 9 . . . . 2 Terminals 34 | . 4 . . . 6 . 14 . 9 . . . . 1 Assimilate 15 | . 2 . . . 1 . 7 . 4 . . . . 1 Botnet 18 | . 2 . . . 4 . 7 . 5 . . . . . Sabotage 1 | . . . . . 1 . . . . . . . . . Fabricators . | . . . . . . . . . . . . . . . Repair Stations . | . . . . . . . . . . . . . . . Recycling Units 1 | . . . . . . . . . . . . . . 1 Monitor 1 | . . . . . . . . . . . . . . 1 Scanalyzers . | . . . . . . . . . . . . . . . Garrison Access . | . . . . . . . . . . . . . . . Data Cores Recovered 1 | . 1 . . . . . . . . . . . . . Used . | . . . . . . . . . . . . . . . Hacking Detections 61 | . 7 . . . 7 6 19 . 17 . . . . 5 Full Trace Events 5 | . . . . . . 1 1 . 3 . . . . . Feedback Events . | . . . . . . . . . . . . . . . Feedback Blocked . | . . . . . . . . . . . . . . . Robot Schematics Acquired 2 | . . . . . . . . . . . . 2 . . Robots Built . | . . . . . . . . . . . . . . . Authchips . | . . . . . . . . . . . . . . . Time . | . . . . . . . . . . . . . . . Total Robot Build Rating . | . . . . . . . . . . . . . . . Part Schematics Acquired 32 | . . . . . 1 . 7 . 3 . . 20 . 1 Parts Built 4 | . . . . . . . . . 4 . . . . . Authchips . | . . . . . . . . . . . . . . . Time 175 | . . . . . . . . . 175 . . . . . Total Part Build Rating 28 | . . . . . . . . . 28 . . . . . Parts Repaired 9 | . . . . . 2 1 3 . 1 . . . . 2 Time 258 | . . . . . 64 38 69 . 43 . . . . 44 Parts Recycled 1 | . . . . . . . 1 . . . . . . . Recycled Matter 350 | . . . . . . . 300 . 47 . . . . 3 Retrieved Matter 50 | . . . . . . . . . 47 . . . . 3 Retrieved Components . | . . . . . . . . . . . . . . . Parts Scanalyzed 10 | . . . . . 1 . 7 . 1 . . . . 1 Part Schematics Acquired 10 | . . . . . 1 . 7 . 1 . . . . 1 Parts Damaged 1 | . . . . . . . 1 . . . . . . . Bothacking | -11 -10 -10 -10 -9 -8 -8 -7 -7 -7 -7 -7 -7 -6 -6 ------------ Run | Jun Mat Min Exi Min Mat Sto Fac Was Fac Low Low Zio Pro Fac Used RIF Installer . | . . . . . . . . . . . . . . . Robots Hacked 1 | . . . . . . . . . . . . . . 1 Non-combat 1 | . . . . . . . . . . . . . . 1 Combat . | . . . . . . . . . . . . . . . Robot Hacks Applied 1 | . . . . . . . . . . . . . . 1 no_distress 1 | . . . . . . . . . . . . . . 1 Relay Couplers Released . | . . . . . . . . . . . . . . . Fabnet Peak Effective % . | . . . . . . . . . . . . . . . Robots Rewired . | . . . . . . . . . . . . . . . Allies Hacked . | . . . . . . . . . . . . . . . Hacks Repelled . | . . . . . . . . . . . . . . . Allies | -11 -10 -10 -10 -9 -8 -8 -7 -7 -7 -7 -7 -7 -6 -6 -------- Run | Jun Mat Min Exi Min Mat Sto Fac Was Fac Low Low Zio Pro Fac Total Allies 13 | . 2 4 . 2 . . 2 . 2 . . . . 1 Largest Group 4 | . 2 4 2 4 4 . 2 1 2 . . . . 1 Highest-Rated Group 71 | . 20 71 32 71 71 . 52 23 36 . . . . 26 Highest-Rated Ally 31 | . 10 31 16 31 31 . 26 23 26 . . . . 26 Total Orders 1 | . . . . . . . 1 . . . . . . . STAY 1 | . . . . . . . 1 . . . . . . . Ally Attacks 36 | . . 13 . . 23 . . . . . . . . . Total Damage 472 | . . 148 . . 324 . . . . . . . . . Kills 4 | . . 2 . . 2 . . . . . . . . . Allies Corrupted . | . . . . . . . . . . . . . . . Allies Melted . | . . . . . . . . . . . . . . . Intel | -11 -10 -10 -10 -9 -8 -8 -7 -7 -7 -7 -7 -7 -6 -6 ------- Run | Jun Mat Min Exi Min Mat Sto Fac Was Fac Low Low Zio Pro Fac Robot Analysis Total 8 | . 2 . . . 2 . 2 . 2 . . . . . Derelict Logs Recovered 6 | . . 1 . . . . . . . 3 . 1 1 . Drone Launches . | . . . . . . . . . . . . . . . Drone Recoveries . | . . . . . . . . . . . . . . . Exploration | -11 -10 -10 -10 -9 -8 -8 -7 -7 -7 -7 -7 -7 -6 -6 ------------- Run | Jun Mat Min Exi Min Mat Sto Fac Was Fac Low Low Zio Pro Fac Turns Passed 5470 | 75 530 302 151 31 615 405 1108 38 757 97 58 306 291 706 Spaces Moved 10333 | 65 737 634 228 31 733 343 2683 121 1791 323 197 1116 434 897 Core 324 | 9 1 . . . . 5 . . . . . . 120 189 Treads . | . . . . . . . . . . . . . . . Legs . | . . . . . . . . . . . . . . . Wheels 192 | 56 136 . . . . . . . . . . . . . Hover 1087 | . . . . . 97 338 652 . . . . . . . Flight 8730 | . 600 634 228 31 636 . 2031 121 1791 323 197 1116 314 708 Fastest Speed 18 | 50 32 32 32 32 27 45 27 27 27 27 27 24 20 18 Average Speed 34 | 93 49 32 32 32 32 50 32 27 27 27 27 25 58 43 Slowest Speed 200 | 100 200 32 32 32 112 200 52 27 27 27 27 27 150 150 Overloaded Moves 5 | . . . . . . . . . . . . . 5 . Propulsion Burnouts . | . . . . . . . . . . . . . . . Robots Hopped 31 | . 3 11 . . 4 . 8 . 5 . . . . . Cave-ins Triggered . | . . . . . . . . . . . . . . . Exploration Rate (%) 54 | 3 94 90 60 18 53 49 69 83 46 52 40 85 57 16 Regions Visited 14 Branch Regions 8 Pre-discovered Areas 4 | . . 1 . . . . . . . 2 . 1 . . Known Exits Taken 2 | . . . . . 1 . . . 1 . . . . . Unknown Exits Taken 10 | 1 1 1 1 1 . 1 . . . 1 1 1 1 . Scrap Searched 6 | . . 1 . . . . . . . . . 3 2 . Spaces Dug 80 | . . . . . 35 1 13 . 3 4 . . 24 . Terrain Destroyed 462 | . 90 98 . . 142 45 45 . 3 4 . . 27 8 Melee 18 | . . . . . 2 1 . . 3 4 . . 8 . Projectile 8 | . . . . . . . . . . . . . . 8 AOE 436 | . 90 98 . . 140 44 45 . . . . . 19 . Terrain Rammed . | . . . . . . . . . . . . . . . Walls Destroyed . | . . . . . . . . . . . . . . . Machines Disabled . | . . . . . . . . . . . . . . . Actions | -11 -10 -10 -10 -9 -8 -8 -7 -7 -7 -7 -7 -7 -6 -6 --------- Run | Jun Mat Min Exi Min Mat Sto Fac Was Fac Low Low Zio Pro Fac Total 11908 | 77 837 714 306 51 1051 536 2897 126 2031 326 198 1131 456 1171 Wait 1018 | . 12 77 76 21 230 127 117 4 162 . . 2 7 183 Move 10260 | 64 730 613 227 30 724 342 2667 120 1780 322 196 1115 433 897 Hop 29 | . 3 9 . . 4 . 8 . 5 . . . . . Pick Up 85 | 7 12 5 1 . 16 5 18 1 6 . . 3 1 10 Fast Attach 52 | 5 6 . . . 5 7 9 . 10 . . 2 1 7 Attach 38 | 1 8 . . . 9 3 4 . 1 . . . . 12 Detach 15 | . 3 . . . . 1 1 . 1 . . . . 9 Swap 39 | . 4 . . . 7 7 8 . 4 . . 1 1 7 Drop 79 | . 14 5 2 . 11 7 20 1 9 . . 5 . 5 Fire 203 | . 45 5 . . 37 36 37 . . . . . 2 41 Melee 46 | . . . . . 8 1 . . 17 4 2 3 11 . Ram . | . . . . . . . . . . . . . . . Kick . | . . . . . . . . . . . . . . . Crush . | . . . . . . . . . . . . . . . Escape Stasis 44 | . . . . . . . 8 . 36 . . . . . Rewire . | . . . . . . . . . . . . . . . Trap . | . . . . . . . . . . . . . . . Miscellaneous . | . . . . . . . . . . . . . . . Route ------- -11/Junkyard -10/Materials (discovered 4 exits: [*Mat x3] / *Min) -10/Mines (discovered 3 exits: [*Mat x2] / *Exi) -10/Exiles -9/Mines -8/Materials (discovered 3 exits: *Fac x2 / *Sto) -8/Storage -7/Factory (discovered 4 exits: *Fac x2 / *Low x2) -7/Waste -7/Factory (discovered 4 exits: *Fac x2 / *Low x2) -7/Lower Caves -7/Lower Caves -7/Zion -6/Proximity Caves -6/Factory (discovered 4 exits: Fac x3 / Low) History --------- Turn | Location | Event 13 | -11/Junkyard | Discovered new exit (range 15) 76 | -11/Junkyard | Entered Materials 176 | -10/Materials | Discovered new exit (range 3) 321 | -10/Materials | Build established: Mutant 359 | -10/Materials | Discovered new exit (range 4) 423 | -10/Materials | Discovered new exit (range 15) 452 | -10/Materials | Central database locked down 542 | -10/Materials | Discovered new exit (range 16) 606 | -10/Materials | Entered Mines 619 | -10/Mines | Discovered new exit (range 9) 626 | -10/Mines | Received a Mining Laser from a helpful Derelict 661 | -10/Mines | Learned location of Storage (-8) 685 | -10/Mines | Build established: Sprinter 688 | -10/Mines | Assisted by bots powering up and referring to "LRC-V3" 724 | -10/Mines | Met a Derelict shopkeep closing up shop 805 | -10/Mines | Discovered new exit (range 9) 900 | -10/Mines | Deemed a non-threat by the Exiles lab entrance 900 | -10/Mines | Discovered new exit (range 5) 908 | -10/Mines | Entered Exiles 908 | -10/Exiles | Accompanied by 2 allies 917 | -10/Exiles | Met 8R-AWN 922 | -10/Exiles | Met EX-HEX 934 | -10/Exiles | Met EX-BIN 939 | -10/Exiles | Aligned with FarCom system 939 | -10/Exiles | Given EX-Vault access code 947 | -10/Exiles | Opened EX-Vault 949 | -10/Exiles | Found Prototype Processor 958 | -10/Exiles | Warned to stay clear of 0b10 Research branches 968 | -10/Exiles | Met EX-DEC 980 | -10/Exiles | Discovered new exit (range 11) 1059 | -10/Exiles | Left Exiles lab with Modified TNC 1059 | -10/Exiles | Entered Mines 1059 | -9/Mines | Accompanied by 2 allies 1067 | -9/Mines | Discovered new exit (range 7) 1090 | -9/Mines | Entered Materials 1090 | -8/Materials | Accompanied by 4 allies 1090 | -8/Materials | Evolved 4 slots: Propulsion x2, Utility x2 1090 | -8/Materials | Identified Modified TNC 1095 | -8/Materials | Led the pair of lost Derelicts to an unsafe place 1138 | -8/Materials | Repaired Mni. Grenade Launcher? 1182 | -8/Materials | Repaired VTOL Module 1334 | -8/Materials | Identified exit to Storage 1334 | -8/Materials | Discovered new exit (range 8) 1495 | -8/Materials | Build established: Hacker-Sprinter 1505 | -8/Materials | Central database locked down 1617 | -8/Materials | Discovered new exit (range 7) 1695 | -8/Materials | Lost 6 parts (1p3n2w) 1705 | -8/Materials | Entered Storage 1740 | -8/Storage | Core integrity fell below 50% 1810 | -8/Storage | Repaired Airjet 1927 | -8/Storage | Build established: Hacker-Mutant 1940 | -8/Storage | Found Prototype Processor 2094 | -8/Storage | Discovered new exit (range 16) 2110 | -8/Storage | Entered Factory 2110 | -7/Factory | Evolved 2 slots: Utility x2 2171 | -7/Factory | Discovered new exit (range 19) 2234 | -7/Factory | Repaired Lgt. Nuclear Core 2298 | -7/Factory | Central database locked down 2420 | -7/Factory | Repaired Airjet 2432 | -7/Factory | Identified Exp. Targeting Computer 2476 | -7/Factory | Repaired Airjet? 2709 | -7/Factory | Discovered new exit (range 5) 2802 | -7/Factory | Discovered new exit (range 13) 2826 | -7/Factory | Build established: Hacker-Sprinter 2917 | -7/Factory | Discovered new exit (range 15) 3218 | -7/Factory | Manually triggered Chute Trap 3218 | -7/Factory | Sucked down chute 3218 | -7/Factory | Entered Waste 3220 | -7/Waste | 1 allies followed down the chute 3220 | -7/Waste | Spotted C-40 Crusher 3222 | -7/Waste | Spotted C-40 Crusher 3226 | -7/Waste | Spotted C-40 Crusher 3233 | -7/Waste | EMP discharged 3236 | -7/Waste | Spotted C-40 Crusher 3242 | -7/Waste | Spotted C-40 Crusher 3248 | -7/Waste | Spotted C-40 Crusher 3252 | -7/Waste | Discovered new exit (range 14) 3256 | -7/Waste | Entered Factory 3258 | -7/Factory | Discovered new exit (range 16) 3415 | -7/Factory | Repaired Broken Adv. Surge Thruster? 3483 | -7/Factory | Fabricated Adv. Surge Thruster? 3484 | -7/Factory | Identified exit to Garrison 3541 | -7/Factory | Identified exit to Lower Caves 3594 | -7/Factory | Central database locked down 3595 | -7/Factory | Discovered new exit (range 9) 3705 | -7/Factory | Fabricated Adv. Surge Thruster? 4013 | -7/Factory | Entered Lower Caves 4031 | -7/Lower Caves | Learned 12 Factory zone layouts 4086 | -7/Lower Caves | Discovered new exit (range 8) 4103 | -7/Lower Caves | Learned location of Zion (-7) 4105 | -7/Lower Caves | Attracted the attention of an 0b10 checkpoint 4110 | -7/Lower Caves | Entered another Lower Caves area 4117 | -7/Lower Caves | Spotted B-75 Beast 4128 | -7/Lower Caves | Encountered a Warlord checkpoint 4167 | -7/Lower Caves | Discovered new exit (range 9) 4168 | -7/Lower Caves | Entered Zion 4179 | -7/Zion | System corruption cleaned by Quarantine Array 4191 | -7/Zion | Learned 12 Factory zone layouts 4207 | -7/Zion | Given A8's code to call for help 4261 | -7/Zion | Rebuked by Imprinter 4470 | -7/Zion | Discovered new exit (range 10) 4474 | -7/Zion | Entered Proximity Caves 4498 | -6/Proximity Caves | Attracted the attention of an 0b10 checkpoint 4529 | -6/Proximity Caves | Spotted B-75 Beast 4584 | -6/Proximity Caves | Lost 4 parts (1p2u1w) 4588 | -6/Proximity Caves | Learned location of 1 exit from Factory 4750 | -6/Proximity Caves | Discovered new exit (range 11) 4765 | -6/Proximity Caves | Entered Factory 4765 | -6/Factory | Evolved 2 slots: Power x1, Utility x1 4766 | -6/Factory | Identified exit to Factory 4767 | -6/Factory | Identified exit to Lower Caves 5203 | -6/Factory | Repaired Adv. Surge Thruster? 5318 | -6/Factory | Repaired Sml. Storage Unit 5471 | -6/Factory | Self-destructed Last Messages --------------- 05426_ K-01 Serf collects debris. 05438_ R-10 Processor collects Imp. Heat Sink. 05441_ R-10 Processor collects Shock Rifle. 05450_ K-01 Serf destroyed. 05455_ Acquired 16 matter. 05455_ Extracted 14 matter. 05457_ W-25 Informer sends out distress signal. 05460_ Lgt. Nuclear Core destroyed. 05461_ S-27 Virus suffers critical hit (Burn). 05461_ S-27 Virus destroyed. 05462_ Mak. System Restoration Module purges 1% system corruption (1%). 05463_ S-27 Virus destroyed. 05463_ R-10 Processor inserts Remote Datajack into recycling unit. 05463_ >> MONITOR: Recycling Unit F005 accepting Remote Datajack (74%). 05465_ S-27 Virus destroyed. 05466_ R-10 Processor inserts Gravmag System into recycling unit. 05466_ >> MONITOR: Recycling Unit F005 accepting Gravmag System (95%). 05467_ R-10 Processor collects VTOL Module. 05469_ R-10 Processor inserts Imp. Heat Sink into recycling unit. 05469_ >> MONITOR: Recycling Unit F005 accepting Imp. Heat Sink (95%). Map ----- +----------------------------------------------------+ | #?????????# ## ????????????????????????? | | #?????????# ## ????????????????????????? | | ########### ##""" ????????????????????????? | | # ##""" ????????????????????????? | | ##+#####""" ????????????????????????? | | + ????????????????????????? | | #####""" ????????????????????????? | | ####### #???#""" ?????????????????????????# | | #?????# #???#""" ????????????????????????? | | ???????????????????????? # ? | | ???????????????????????? # ? | | ??????????????????###+#### """ """ """ """ """ ? | | ??????????????????/ """ """ """ """ """ ? | | ??????????????????# """ """ """ """ """ ? | | ??????????????????# || ? | | ??????????????????# || """ """ """ """ """ ? | | ??????????????????# |= /w """ """ """ """ """ ? | | ??????????????????+ """ """ """ """ """ ? | | ??????????????????# ] ? | | ??????????????????+ ? | | ??????????????????# ############+########## ? | | ??????????????????# #???????# #????# ? | | ??????????????????# ######### """" ""#????# ? | | ??????????????????# R#[[ # """" ""#????# ? | | ?????############## Rp%% """# """" ""#????# ? | | ?????# """ # !#@ RY"# """" S#????# ? | | ?????# "Y" # # """# """" ""#????# | | ?????# " " # # # """" ""#????# | | ?????# """ # # # """" ""#????# | | ###### """ # # # #????# | | + """ + #s ############### | | ###### # + + | | ?????# """ """ # # """" ############ | | ?????# """ """ # # """" #??????????# | | ?????# """ """ # # """" #??????????# ##### | | ?????# # # """" #??????????# #???? | | ?????# # # """" #??????????# #???? | | ?????############## # """" #??????????# #???? | | ??????????????????# # """" #???????####+##### | | ????????########### # ? #???????# |=! | | ????????# # ###############?# ! ! | | ????????# """ # # #?# | | ????????# """ """ # # #?# """ """ | | ????????# """ """ # # * #?# """ """ | | ????????# "S + +[ #?# """ """ | | ????????# """ * # #[ =#?# | | ????????# "" # # #?# | | ????????# + ###############?########## | | ????????#############+########???????????????????? | | ?????????????# [ #??????????????????? | +----------------------------------------------------+ Best States ------------- Heat Dissipation 37 Energy Generation 23 Energy Capacity 300 Matter Stores 300 Matter Capacity 300 Sight Range 16 Robot Scan Range 14 Terrain Scan Density 210 ECM Strength 2 Additional Mass Support 9 Corruption Block 8 Armor Coverage 150 Resistance: KI 20 Propulsion Shielding 66 Evasion (%) 66 Targeting Accuracy 12 Offensive Hacking 33 Defensive Hacking 10 Item Schematics ----------------- Imp. VTOL Module | -8/Materials | Scanalyzed Hacking Suite | -7/Factory | Scanalyzed System Restoration Module | -7/Factory | Scanalyzed Imp. Propulsion Shielding | -7/Factory | Scanalyzed Spear | -7/Factory | Scanalyzed Imp. Light Armor Plating | -7/Factory | Scanalyzed VTOL Module | -7/Factory | Scanalyzed Cld. VTOL Module | -7/Factory | Scanalyzed Adv. Surge Thruster | -7/Factory | Scanalyzed Adv. System Shield | -7/Factory | Hacked Enh. Autogun | -7/Factory | Hacked Imp. Titanium Leg | -7/Zion | Archive Adv. Signal Interpreter | -7/Zion | Archive Flak Gun | -7/Zion | Archive 0b10 Decoder Chip [Looter] | -7/Zion | Archive Imp. Shield Generator | -7/Zion | Archive Imp. Proton Missile Launcher | -7/Zion | Archive Imp. Melee Analysis Suite | -7/Zion | Archive Mni. Drone Bay | -7/Zion | Archive Imp. Focal Shield | -7/Zion | Archive Arc Projector | -7/Zion | Archive Angular Momentum Engine | -7/Zion | Archive Recalibrator | -7/Zion | Archive Flexi-carbon Leg | -7/Zion | Archive Beamcaster | -7/Zion | Archive Hvy. Ion Cannon | -7/Zion | Archive Lrn. Phase Cannon | -7/Zion | Archive Riot Gun | -7/Zion | Free Battle Rifle | -7/Zion | Free Battle Cannon | -7/Zion | Free Slug Cannon | -7/Zion | Free Cloaking Device | -6/Factory | Scanalyzed Robot Schematics ------------------ P-60 Hacker | -7/Zion | Archive K-01 Serf | -7/Zion | Archive Fabricated ------------ Adv. Surge Thruster | x2 | -7/Factory Adv. Surge Thruster | x2 | -7/Factory Alien Tech Used ----------------- None Achievements -------------- Wheee! Challenges ------------ None Game ------ Seed MasterExperimentalDissipator Manual? 0 Play Time 02:19:12 Cumulative 56.2 hours Start 2023.11.24 @ 12:18:58 End 2023.11.24 @ 15:04:14 Sessions 3 Manual Loads 0 Difficulty Rogue Special Mode None Game No. 52 Rogue 49 Adventurer 3 Explorer 0 Win Type - Total 0 Types 0/0/0/0/0/0/0/0/0 Lore% 52 Gallery% 49 Achievement% 41 Wizard Run 0 Options --------- ASCII 0 Keyboard 0 Movement Mouse Keybinds 0 Fullscreen 2 Font 18/SmallcapsGlow Map View 76x50 Tactical HUD 1 Map Filters NONE Filters NONE Steam 1 RUN: 05ecf83e-ad0d-41f3-b3c3-ec58d87801cf